[Event "44th Chess Olympiad Women 2022"]
[Site "Chennai"]
[Date "2022.08.08"]
[Round "10.27"]
[White "Norlamo, Sarabella"]
[Black "Popovic, Mateja"]
[Result "1-0"]
[WhiteElo "1925"]
[BlackElo "1634"]
[Annotator "NA RC"]
[PlyCount "43"]
[EventDate "2022.??.??"]
[TimeControl "60"]

1. d4 {[%emt 0:00:04]} d5 {[%emt 0:00:14]} 2. c4 {[%emt 0:00:06]} e6 {[%emt 0:
00:00]} 3. cxd5 {[%emt 0:00:05]} exd5 {[%emt 0:00:04]} 4. Nc3 {[%emt 0:00:04]}
Nf6 {[%emt 0:00:09]} 5. Bg5 {[%emt 0:00:07]} Be7 {[%emt 0:00:05]} 6. e3 {
[%emt 0:00:08]} O-O {[%emt 0:00:19]} 7. Bd3 {[%emt 0:00:04]} Nbd7 {[%emt 0:00:
00]} 8. Nge2 {[%emt 0:01:06]} h6 {[%emt 0:04:19]} 9. Bh4 {[%emt 0:01:01]} c5 {
[%emt 0:04:10]} 10. O-O {[%emt 0:17:53]} cxd4 {[%emt 0:05:11]} 11. Nxd4 {
[%emt 0:04:08]} Nb6 {[%emt 0:03:40]} 12. Rc1 {[%emt 0:19:50]} Bd7 {[%emt 0:00:
00]} 13. Qb3 {[%emt 0:13:05]} Bc6 {[%emt 0:01:30]} 14. Nf5 {[%emt 0:04:36]} Bc5
{[%emt 0:09:52]} 15. Rfd1 {[%emt 0:06:44]} Nbd7 {[%emt 0:05:23]} 16. Bb1 {
[%emt 0:08:43]} Qa5 {[%emt 0:06:01]} 17. Qc2 {[%emt 0:02:36]} Bb4 {[%emt 0:00:
00]} 18. Qd3 {[%emt 0:05:15]} Ne4 {[%emt 0:17:32]} 19. Nxd5 {[%emt 0:03:42]}
Bxd5 {[%emt 0:04:04]} 20. Qxd5 {[%emt 0:00:02]} Nef6 {[%emt 0:02:57]} 21. Qxb7
{[%emt 0:03:39]} Rab8 {[%emt 0:02:45]} 22. Qc7 {[%emt 0:06:16]} 1-0

[Event "44th Chess Olympiad Women 2022"]
[Site "Chennai"]
[Date "2022.08.08"]
[Round "10.27"]
[White "Tuominen, Tanja"]
[Black "Koljevic, Nikolina"]
[Result "1-0"]
[WhiteElo "2080"]
[BlackElo "2014"]
[Annotator "NA RC"]
[PlyCount "61"]
[EventDate "2022.??.??"]
[TimeControl "60"]

1. e4 {[%emt 0:00:03]} c6 {[%emt 0:00:12]} 2. d4 {[%emt 0:00:09]} d5 {[%emt 0:
00:00]} 3. exd5 {[%emt 0:00:05]} cxd5 {[%emt 0:00:09]} 4. Bd3 {[%emt 0:00:17]}
Nc6 {[%emt 0:00:15]} 5. c3 {[%emt 0:00:04]} Qc7 {[%emt 0:01:04]} 6. h3 {
[%emt 0:07:19]} g6 {[%emt 0:03:07]} 7. Ne2 {[%emt 0:01:33]} Bf5 {[%emt 0:02:36]
} 8. Bxf5 {[%emt 0:00:26]} gxf5 {[%emt 0:00:03]} 9. Bf4 {[%emt 0:02:35]} Qd7 {
[%emt 0:00:26]} 10. O-O {[%emt 0:03:02]} Nf6 {[%emt 0:02:29]} 11. Nd2 {[%emt 0:
00:00]} e6 {[%emt 0:01:22]} 12. Re1 {[%emt 0:08:04]} Bd6 {[%emt 0:09:24]} 13.
Bxd6 {[%emt 0:17:41]} Qxd6 {[%emt 0:00:02]} 14. c4 {[%emt 0:00:37]} Rg8 {
[%emt 0:05:56]} 15. Qb3 {[%emt 0:13:49]} O-O-O {[%emt 0:09:59]} 16. Rac1 {
[%emt 0:04:11]} Kb8 {[%emt 0:18:20]} 17. c5 {[%emt 0:03:56]} Qe7 {[%emt 0:00:
00]} 18. Qa4 {[%emt 0:02:20]} Nh5 {[%emt 0:02:05]} 19. Nf3 {[%emt 0:02:34]} Rg6
{[%emt 0:03:44]} 20. Ne5 {[%emt 0:08:20]} Nxe5 {[%emt 0:05:28]} 21. dxe5 {
[%emt 0:00:05]} Rc8 {[%emt 0:03:13]} 22. c6 {[%emt 0:01:53]} b6 {[%emt 0:03:26]
} 23. c7+ {[%emt 0:09:37]} Rxc7 {[%emt 0:01:15]} 24. Rxc7 {[%emt 0:02:07]} Qxc7
{[%emt 0:00:02]} 25. Rc1 {[%emt 0:00:19]} Qe7 {[%emt 0:01:30]} 26. Rc3 {
[%emt 0:08:53]} Rg8 {[%emt 0:06:17]} 27. Nd4 {[%emt 0:00:15]} Qb7 {[%emt 0:00:
00]} 28. Nc6+ {[%emt 0:00:37]} Ka8 {[%emt 0:00:02]} 29. Ra3 {[%emt 0:00:41]} a6
{[%emt 0:00:27]} 30. Qb5 {[%emt 0:00:20]} a5 {[%emt 0:01:01]} 31. Rxa5+ {
[%emt 0:00:14]} 1-0

[Event "44th Chess Olympiad Women 2022"]
[Site "Chennai"]
[Date "2022.08.08"]
[Round "10.28"]
[White "Bobomurodova, Maftuna"]
[Black "Perez, Dalila"]
[Result "1-0"]
[WhiteElo "1914"]
[BlackElo "1799"]
[Annotator "NA RC"]
[PlyCount "105"]
[EventDate "2022.??.??"]
[TimeControl "60"]

1. e4 {[%emt 0:00:07]} e6 {[%emt 0:00:06]} 2. d4 {[%emt 0:00:05]} d5 {[%emt 0:
00:00]} 3. Nd2 {[%emt 0:00:07]} c5 {[%emt 0:00:15]} 4. exd5 {[%emt 0:00:09]}
Qxd5 {[%emt 0:00:08]} 5. Ngf3 {[%emt 0:00:11]} cxd4 {[%emt 0:00:15]} 6. Bc4 {
[%emt 0:00:08]} Qd6 {[%emt 0:00:11]} 7. O-O {[%emt 0:00:13]} Nf6 {[%emt 0:00:
00]} 8. Nb3 {[%emt 0:00:12]} Nc6 {[%emt 0:00:12]} 9. Nbxd4 {[%emt 0:00:29]}
Nxd4 {[%emt 0:02:02]} 10. Nxd4 {[%emt 0:00:09]} a6 {[%emt 0:02:41]} 11. Re1 {
[%emt 0:04:49]} Qc7 {[%emt 0:18:17]} 12. Bf1 {[%emt 0:00:12]} Be7 {[%emt 0:00:
00]} 13. Qf3 {[%emt 0:08:08]} Qb6 {[%emt 0:08:43]} 14. Nb3 {[%emt 0:03:37]} O-O
{[%emt 0:02:50]} 15. Be3 {[%emt 0:01:44]} Qc7 {[%emt 0:00:23]} 16. c4 {[%emt 0:
00:00]} Bd6 {[%emt 0:14:18]} 17. h3 {[%emt 0:01:06]} h6 {[%emt 0:06:48]} 18.
Bxh6 {[%emt 0:02:26]} Bh2+ {[%emt 0:01:04]} 19. Kh1 {[%emt 0:02:59]} Be5 {
[%emt 0:01:41]} 20. Bd2 {[%emt 0:06:16]} Bxb2 {[%emt 0:02:44]} 21. Rab1 {
[%emt 0:00:05]} Be5 {[%emt 0:01:42]} 22. Ba5 {[%emt 0:05:20]} Qb8 {[%emt 0:00:
00]} 23. Nc5 {[%emt 0:03:40]} Bd4 {[%emt 0:02:17]} 24. Bb6 {[%emt 0:06:41]} e5
{[%emt 0:01:54]} 25. Ne4 {[%emt 0:02:59]} Nxe4 {[%emt 0:03:31]} 26. Qxe4 {
[%emt 0:02:05]} Qd6 {[%emt 0:06:33]} 27. Red1 {[%emt 0:00:55]} Qa3 {[%emt 0:00:
00]} 28. Bxd4 {[%emt 0:07:38]} exd4 {[%emt 0:00:14]} 29. Qxd4 {[%emt 0:04:21]}
Qa5 {[%emt 0:05:22]} 30. Bd3 {[%emt 0:00:00]} Be6 {[%emt 0:01:35]} 31. Qh4 {
[%emt 0:00:11]} g6 {[%emt 0:01:16]} 32. Qf6 {[%emt 0:04:51]} Qh5 {[%emt 0:00:
00]} 33. Be4 {[%emt 0:01:25]} Rab8 {[%emt 0:00:53]} 34. Bf3 {[%emt 0:00:37]}
Qc5 {[%emt 0:00:40]} 35. Bd5 {[%emt 0:00:28]} Rfe8 {[%emt 0:00:35]} 36. Rd4 {
[%emt 0:02:46]} Qe7 {[%emt 0:00:01]} 37. Qf3 {[%emt 0:04:45]} Bxd5 {[%emt 0:00:
00]} 38. cxd5 {[%emt 0:00:19]} Qd6 {[%emt 0:00:29]} 39. Rbd1 {[%emt 0:01:49]}
Rbd8 {[%emt 0:00:50]} 40. a4 {[%emt 0:02:26]} Kg7 {[%emt 0:00:27]} 41. Rf4 {
[%emt 0:30:42]} Rd7 {[%emt 0:01:41]} 42. g4 {[%emt 0:00:00]} Rc8 {[%emt 0:00:
00]} 43. Kg2 {[%emt 0:00:00]} Qe5 {[%emt 0:04:06]} 44. Re4 {[%emt 0:00:00]} Qd6
{[%emt 0:02:38]} 45. h4 {[%emt 0:00:00]} b5 {[%emt 0:04:44]} 46. h5 {[%emt 0:
00:00]} b4 {[%emt 0:08:04]} 47. Qe3 {[%emt 0:00:00]} a5 {[%emt 0:03:18]} 48.
Qd4+ {[%emt 0:00:00]} Kh7 {[%emt 0:00:54]} 49. hxg6+ {[%emt 0:00:00]} Kxg6 {
[%emt 0:00:41]} 50. Re5 {[%emt 0:00:00]} Rc4 {[%emt 0:01:07]} 51. Qd3+ {
[%emt 0:00:00]} Kg7 {[%emt 0:00:31]} 52. Rg5+ {[%emt 0:00:00]} Kf6 {[%emt 0:00:
00]} 53. Rf5+ {[%emt 0:00:00]} 1-0

[Event "44th Chess Olympiad Women 2022"]
[Site "Chennai"]
[Date "2022.08.08"]
[Round "10.28"]
[White "Montiel Caceres, Helen"]
[Black "Khamdamova, Afruza"]
[Result "0-1"]
[WhiteElo "1763"]
[BlackElo "1969"]
[Annotator "NA RC"]
[PlyCount "72"]
[EventDate "2022.??.??"]
[TimeControl "60"]

1. d4 {[%emt 0:00:03]} Nf6 {[%emt 0:00:08]} 2. c4 {[%emt 0:00:04]} e6 {[%emt 0:
00:00]} 3. Nf3 {[%emt 0:00:07]} d5 {[%emt 0:00:05]} 4. Nc3 {[%emt 0:00:16]} Be7
{[%emt 0:00:10]} 5. cxd5 {[%emt 0:00:08]} exd5 {[%emt 0:00:05]} 6. Bg5 {
[%emt 0:00:05]} O-O {[%emt 0:00:14]} 7. Qc2 {[%emt 0:00:34]} Nbd7 {[%emt 0:00:
00]} 8. e3 {[%emt 0:00:08]} Re8 {[%emt 0:00:16]} 9. Bd3 {[%emt 0:00:08]} c6 {
[%emt 0:00:06]} 10. O-O {[%emt 0:00:07]} Nf8 {[%emt 0:00:07]} 11. Rab1 {
[%emt 0:07:13]} a5 {[%emt 0:01:04]} 12. a3 {[%emt 0:01:32]} h6 {[%emt 0:01:34]}
13. Bh4 {[%emt 0:00:10]} Ne4 {[%emt 0:01:28]} 14. Bxe7 {[%emt 0:01:49]} Qxe7 {
[%emt 0:00:07]} 15. Bxe4 {[%emt 0:00:06]} dxe4 {[%emt 0:00:06]} 16. Ne5 {
[%emt 0:03:08]} f6 {[%emt 0:21:29]} 17. Nc4 {[%emt 0:02:12]} Be6 {[%emt 0:00:
00]} 18. Nb6 {[%emt 0:07:30]} Ra6 {[%emt 0:00:21]} 19. Nca4 {[%emt 0:02:15]}
Qd8 {[%emt 0:05:38]} 20. b4 {[%emt 0:16:28]} Rxb6 {[%emt 0:02:33]} 21. Nxb6 {
[%emt 0:00:06]} Qxb6 {[%emt 0:00:04]} 22. bxa5 {[%emt 0:00:15]} Qxa5 {[%emt 0:
00:00]} 23. Rxb7 {[%emt 0:00:07]} Bd5 {[%emt 0:00:49]} 24. Qb2 {[%emt 0:13:39]}
Ra8 {[%emt 0:05:58]} 25. Ra1 {[%emt 0:00:33]} Ne6 {[%emt 0:02:32]} 26. Rb4 {
[%emt 0:17:22]} Kh7 {[%emt 0:03:14]} 27. h4 {[%emt 0:04:44]} f5 {[%emt 0:04:25]
} 28. Qb1 {[%emt 0:00:48]} Qd8 {[%emt 0:01:25]} 29. g3 {[%emt 0:00:36]} Qf6 {
[%emt 0:03:40]} 30. Rb7 {[%emt 0:04:49]} f4 {[%emt 0:01:46]} 31. exf4 {[%emt 0:
00:00]} Nxd4 {[%emt 0:00:18]} 32. h5 {[%emt 0:08:02]} c5 {[%emt 0:06:49]} 33.
Rb6 {[%emt 0:01:14]} Qf5 {[%emt 0:00:25]} 34. Qd1 {[%emt 0:06:10]} Qh3 {
[%emt 0:00:47]} 35. f3 {[%emt 0:01:07]} Qxg3+ {[%emt 0:00:46]} 36. Kf1 {
[%emt 0:00:11]} Bc4+ {[%emt 0:00:07]} 0-1

[Event "44th Chess Olympiad Women 2022"]
[Site "Chennai"]
[Date "2022.08.08"]
[Round "10.28"]
[White "Oviedo Acosta, Paula"]
[Black "Omonova, Umida"]
[Result "1/2-1/2"]
[WhiteElo "1855"]
[BlackElo "2195"]
[Annotator "NA RC"]
[PlyCount "61"]
[EventDate "2022.??.??"]
[TimeControl "60"]

1. e4 {[%emt 0:00:03]} e5 {[%emt 0:00:13]} 2. Nf3 {[%emt 0:00:14]} Nc6 {
[%emt 0:00:14]} 3. Bc4 {[%emt 0:00:31]} Bc5 {[%emt 0:00:10]} 4. c3 {[%emt 0:00:
00]} Nf6 {[%emt 0:00:09]} 5. d3 {[%emt 0:00:24]} a6 {[%emt 0:00:20]} 6. Bb3 {
[%emt 0:00:47]} Ba7 {[%emt 0:00:19]} 7. Nbd2 {[%emt 0:01:30]} O-O {[%emt 0:00:
00]} 8. O-O {[%emt 0:02:11]} d6 {[%emt 0:00:15]} 9. h3 {[%emt 0:00:16]} Kh8 {
[%emt 0:00:14]} 10. Re1 {[%emt 0:02:34]} Ng8 {[%emt 0:00:13]} 11. Nf1 {[%emt 0:
00:00]} f5 {[%emt 0:04:01]} 12. Bg5 {[%emt 0:06:17]} Qe8 {[%emt 0:01:10]} 13.
exf5 {[%emt 0:01:00]} Bxf5 {[%emt 0:00:28]} 14. Ng3 {[%emt 0:00:51]} Be6 {
[%emt 0:06:51]} 15. Bxe6 {[%emt 0:04:21]} Qxe6 {[%emt 0:00:08]} 16. d4 {
[%emt 0:00:10]} Qg6 {[%emt 0:01:10]} 17. Be3 {[%emt 0:04:45]} e4 {[%emt 0:00:
00]} 18. Nh4 {[%emt 0:00:37]} Qf6 {[%emt 0:02:50]} 19. Nxe4 {[%emt 0:05:11]}
Qf7 {[%emt 0:03:40]} 20. Ng5 {[%emt 0:06:31]} Qf6 {[%emt 0:00:58]} 21. Qh5 {
[%emt 0:00:46]} Nh6 {[%emt 0:00:36]} 22. g4 {[%emt 0:03:10]} Ne7 {[%emt 0:00:
00]} 23. Ne6 {[%emt 0:11:45]} Qxe6 {[%emt 0:01:57]} 24. Bxh6 {[%emt 0:00:12]}
Qf6 {[%emt 0:01:27]} 25. Bg5 {[%emt 0:07:42]} Qxf2+ {[%emt 0:00:07]} 26. Kh1 {
[%emt 0:00:35]} Rf3 {[%emt 0:00:30]} 27. Nxf3 {[%emt 0:03:32]} Qxf3+ {[%emt 0:
00:00]} 28. Kg1 {[%emt 0:00:18]} Qg3+ {[%emt 0:00:08]} 29. Kh1 {[%emt 0:00:06]}
Qf3+ {[%emt 0:00:40]} 30. Kg1 {[%emt 0:00:07]} Qg3+ {[%emt 0:00:06]} 31. Kh1 {
[%emt 0:00:06]} 1/2-1/2

[Event "44th Chess Olympiad Women 2022"]
[Site "Chennai"]
[Date "2022.08.08"]
[Round "10.28"]
[White "Yakubbaeva, Nilufar"]
[Black "Vargas, Gabriela"]
[Result "1/2-1/2"]
[WhiteElo "2299"]
[BlackElo "2140"]
[Annotator "NA RC"]
[PlyCount "39"]
[EventDate "2022.??.??"]
[TimeControl "60"]

1. d4 {[%emt 0:00:07]} d5 {[%emt 0:00:09]} 2. Nf3 {[%emt 0:00:07]} Nc6 {
[%emt 0:01:13]} 3. Bf4 {[%emt 0:00:21]} Bf5 {[%emt 0:00:30]} 4. e3 {[%emt 0:00:
00]} e6 {[%emt 0:00:45]} 5. Bb5 {[%emt 0:01:53]} Bd6 {[%emt 0:00:27]} 6. Ne5 {
[%emt 0:06:11]} Nge7 {[%emt 0:01:14]} 7. O-O {[%emt 0:06:33]} O-O {[%emt 0:00:
00]} 8. Nxc6 {[%emt 0:06:27]} bxc6 {[%emt 0:04:27]} 9. Bxd6 {[%emt 0:03:02]}
Qxd6 {[%emt 0:02:46]} 10. Bd3 {[%emt 0:00:18]} c5 {[%emt 0:01:10]} 11. c3 {
[%emt 0:03:21]} cxd4 {[%emt 0:07:15]} 12. exd4 {[%emt 0:00:51]} c5 {[%emt 0:00:
00]} 13. dxc5 {[%emt 0:00:23]} Qxc5 {[%emt 0:00:07]} 14. Bxf5 {[%emt 0:00:13]}
Nxf5 {[%emt 0:00:19]} 15. Nd2 {[%emt 0:00:06]} Rab8 {[%emt 0:05:31]} 16. Nb3 {
[%emt 0:02:10]} Qc4 {[%emt 0:01:35]} 17. Re1 {[%emt 0:01:10]} Rfd8 {[%emt 0:00:
00]} 18. Qe2 {[%emt 0:00:50]} Qxe2 {[%emt 0:08:03]} 19. Rxe2 {[%emt 0:00:04]}
h5 {[%emt 0:00:31]} 20. Kf1 {[%emt 0:01:34]} 1/2-1/2

[Event "44th Chess Olympiad Women 2022"]
[Site "Chennai"]
[Date "2022.08.08"]
[Round "10.29"]
[White "Foudzi, Siti Zulaikha"]
[Black "Shabanaj, Eglantina"]
[Result "1-0"]
[WhiteElo "2188"]
[BlackElo "1940"]
[Annotator "NA RC"]
[PlyCount "75"]
[EventDate "2022.??.??"]
[TimeControl "60"]

1. e4 {[%emt 0:00:04]} e5 {[%emt 0:00:06]} 2. Nf3 {[%emt 0:00:07]} Nc6 {
[%emt 0:00:06]} 3. Bb5 {[%emt 0:00:07]} a6 {[%emt 0:00:09]} 4. Ba4 {[%emt 0:00:
00]} d6 {[%emt 0:00:11]} 5. Qe2 {[%emt 0:00:18]} Bd7 {[%emt 0:01:03]} 6. c3 {
[%emt 0:00:23]} g6 {[%emt 0:01:07]} 7. O-O {[%emt 0:04:13]} Bg7 {[%emt 0:00:11]
} 8. d3 {[%emt 0:01:07]} Nf6 {[%emt 0:01:14]} 9. Nbd2 {[%emt 0:01:44]} O-O {
[%emt 0:01:05]} 10. Re1 {[%emt 0:01:28]} Qe7 {[%emt 0:00:44]} 11. Bb3 {[%emt 0:
00:00]} Nh5 {[%emt 0:01:20]} 12. Nf1 {[%emt 0:00:38]} Kh8 {[%emt 0:01:03]} 13.
h3 {[%emt 0:05:50]} f6 {[%emt 0:02:13]} 14. d4 {[%emt 0:04:36]} Rad8 {[%emt 0:
00:00]} 15. a3 {[%emt 0:02:57]} Be8 {[%emt 0:03:26]} 16. Qc2 {[%emt 0:03:30]}
Bf7 {[%emt 0:02:26]} 17. Bd5 {[%emt 0:02:05]} Qd7 {[%emt 0:13:42]} 18. b4 {
[%emt 0:09:12]} Bxd5 {[%emt 0:05:18]} 19. exd5 {[%emt 0:00:07]} Ne7 {[%emt 0:
00:00]} 20. c4 {[%emt 0:04:02]} c6 {[%emt 0:01:06]} 21. dxc6 {[%emt 0:02:05]}
Qxc6 {[%emt 0:05:57]} 22. Qe2 {[%emt 0:03:28]} Ng8 {[%emt 0:04:31]} 23. d5 {
[%emt 0:01:03]} Qd7 {[%emt 0:00:48]} 24. g4 {[%emt 0:00:32]} Nf4 {[%emt 0:00:
00]} 25. Bxf4 {[%emt 0:00:05]} exf4 {[%emt 0:00:13]} 26. Rac1 {[%emt 0:01:54]}
f5 {[%emt 0:05:51]} 27. g5 {[%emt 0:00:24]} Rde8 {[%emt 0:02:23]} 28. Qd3 {
[%emt 0:01:54]} h6 {[%emt 0:03:28]} 29. h4 {[%emt 0:00:35]} Be5 {[%emt 0:03:20]
} 30. c5 {[%emt 0:03:16]} hxg5 {[%emt 0:02:57]} 31. hxg5 {[%emt 0:04:01]} Qd8 {
[%emt 0:01:03]} 32. N1d2 {[%emt 0:00:35]} Rf7 {[%emt 0:01:12]} 33. Kg2 {
[%emt 0:00:52]} Rh7 {[%emt 0:00:18]} 34. Rh1 {[%emt 0:00:06]} Ree7 {[%emt 0:00:
00]} 35. Nc4 {[%emt 0:00:20]} Kg7 {[%emt 0:07:56]} 36. cxd6 {[%emt 0:01:07]}
Bxd6 {[%emt 0:00:40]} 37. Rxh7+ {[%emt 0:00:54]} Kxh7 {[%emt 0:02:08]} 38. Qd4
{[%emt 0:00:02]} 1-0

[Event "44th Chess Olympiad Women 2022"]
[Site "Chennai"]
[Date "2022.08.08"]
[Round "10.29"]
[White "Gjergji, Rozana"]
[Black "Chong, Kai Ni Agnes"]
[Result "1-0"]
[WhiteElo "1920"]
[BlackElo "1909"]
[Annotator "NA RC"]
[PlyCount "117"]
[EventDate "2022.??.??"]
[TimeControl "60"]

1. e4 {[%emt 0:00:03]} c5 {[%emt 0:00:06]} 2. Nc3 {[%emt 0:00:08]} e6 {[%emt 0:
00:00]} 3. f4 {[%emt 0:00:19]} d5 {[%emt 0:00:09]} 4. Bb5+ {[%emt 0:00:12]} Bd7
{[%emt 0:00:13]} 5. Bxd7+ {[%emt 0:00:35]} Qxd7 {[%emt 0:00:09]} 6. d3 {
[%emt 0:01:00]} Nc6 {[%emt 0:00:14]} 7. Nf3 {[%emt 0:00:29]} Nf6 {[%emt 0:00:
00]} 8. O-O {[%emt 0:00:46]} Be7 {[%emt 0:00:09]} 9. Ne5 {[%emt 0:03:51]} Qc7 {
[%emt 0:04:31]} 10. Ng4 {[%emt 0:02:10]} O-O-O {[%emt 0:03:25]} 11. Nf2 {
[%emt 0:08:13]} h5 {[%emt 0:02:36]} 12. Bd2 {[%emt 0:03:52]} h4 {[%emt 0:08:43]
} 13. Ne2 {[%emt 0:02:49]} Nh5 {[%emt 0:04:40]} 14. c3 {[%emt 0:03:08]} f6 {
[%emt 0:04:15]} 15. d4 {[%emt 0:09:50]} dxe4 {[%emt 0:12:51]} 16. Nxe4 {
[%emt 0:00:20]} cxd4 {[%emt 0:03:39]} 17. Nxd4 {[%emt 0:00:47]} Nxd4 {[%emt 0:
00:00]} 18. cxd4 {[%emt 0:00:04]} Kb8 {[%emt 0:08:16]} 19. Qa4 {[%emt 0:08:18]}
Qb6 {[%emt 0:02:50]} 20. Be3 {[%emt 0:03:02]} e5 {[%emt 0:05:57]} 21. fxe5 {
[%emt 0:07:09]} fxe5 {[%emt 0:00:09]} 22. Nc5 {[%emt 0:01:01]} Nf6 {[%emt 0:00:
00]} 23. Rac1 {[%emt 0:04:33]} Rd5 {[%emt 0:15:20]} 24. dxe5 {[%emt 0:09:10]}
Bxc5 {[%emt 0:01:30]} 25. Rxc5 {[%emt 0:00:02]} Rxc5 {[%emt 0:01:12]} 26. exf6
{[%emt 0:00:03]} gxf6 {[%emt 0:00:29]} 27. Qf4+ {[%emt 0:00:55]} Ka8 {[%emt 0:
00:00]} 28. b4 {[%emt 0:03:08]} Rf5 {[%emt 0:00:53]} 29. Bxb6 {[%emt 0:01:13]}
Rxf4 {[%emt 0:00:06]} 30. Rxf4 {[%emt 0:00:06]} axb6 {[%emt 0:00:05]} 31. Rxf6
{[%emt 0:00:02]} h3 {[%emt 0:04:22]} 32. g3 {[%emt 0:00:31]} Rc8 {[%emt 0:00:
00]} 33. Rh6 {[%emt 0:01:41]} Rc1+ {[%emt 0:00:18]} 34. Kf2 {[%emt 0:00:04]}
Rc2+ {[%emt 0:00:22]} 35. Kf3 {[%emt 0:00:01]} Rxh2 {[%emt 0:00:49]} 36. Kg4 {
[%emt 0:00:31]} Rb2 {[%emt 0:02:19]} 37. Kxh3 {[%emt 0:01:29]} Rxb4 {[%emt 0:
00:00]} 38. g4 {[%emt 0:01:39]} Rb5 {[%emt 0:04:04]} 39. Kh4 {[%emt 0:00:31]}
Ra5 {[%emt 0:01:14]} 40. Rxb6 {[%emt 0:01:50]} Rxa2 {[%emt 0:00:17]} 41. g5 {
[%emt 0:30:03]} Rg2 {[%emt 0:31:03]} 42. Kh5 {[%emt 0:01:43]} Ka7 {[%emt 0:00:
00]} 43. Rb4 {[%emt 0:00:00]} Ka6 {[%emt 0:00:00]} 44. g6 {[%emt 0:00:00]} b5 {
[%emt 0:00:00]} 45. Rg4 {[%emt 0:00:00]} Rh2+ {[%emt 0:00:00]} 46. Kg5 {
[%emt 0:00:00]} Rh8 {[%emt 0:00:00]} 47. g7 {[%emt 0:00:00]} Rg8 {[%emt 0:00:
00]} 48. Kf6 {[%emt 0:00:00]} Ka5 {[%emt 0:00:00]} 49. Kf7 {[%emt 0:00:00]} Rc8
{[%emt 0:00:00]} 50. g8=Q {[%emt 0:00:00]} Rxg8 {[%emt 0:00:00]} 51. Rxg8 {
[%emt 0:00:00]} Kb4 {[%emt 0:00:00]} 52. Rc8 {[%emt 0:00:00]} Kb3 {[%emt 0:00:
00]} 53. Ke6 {[%emt 0:00:00]} b4 {[%emt 0:00:00]} 54. Kd5 {[%emt 0:00:00]} Ka2
{[%emt 0:00:00]} 55. Kd4 {[%emt 0:00:00]} b3 {[%emt 0:00:00]} 56. Kc3 {[%emt 0:
00:00]} b2 {[%emt 0:00:00]} 57. Ra8+ {[%emt 0:00:00]} Kb1 {[%emt 0:00:00]} 58.
Rb8 {[%emt 0:00:00]} Ka1 {[%emt 0:00:00]} 59. Kc2 {[%emt 0:00:00]} 1-0

[Event "44th Chess Olympiad Women 2022"]
[Site "Chennai"]
[Date "2022.08.08"]
[Round "10.29"]
[White "Shuqja, Klean"]
[Black "Azhar, Puteri Munajjah Az-"]
[Result "1/2-1/2"]
[WhiteElo "1883"]
[BlackElo "2018"]
[Annotator "NA RC"]
[PlyCount "114"]
[EventDate "2022.??.??"]
[TimeControl "60"]

1. e4 {[%emt 0:00:01]} e5 {[%emt 0:00:06]} 2. Nf3 {[%emt 0:00:03]} Nc6 {
[%emt 0:00:08]} 3. Bb5 {[%emt 0:00:02]} a6 {[%emt 0:00:10]} 4. Ba4 {[%emt 0:00:
00]} Bc5 {[%emt 0:00:58]} 5. O-O {[%emt 0:00:29]} b5 {[%emt 0:00:45]} 6. Bb3 {
[%emt 0:00:02]} Nf6 {[%emt 0:00:55]} 7. d3 {[%emt 0:00:34]} O-O {[%emt 0:03:21]
} 8. Bg5 {[%emt 0:11:14]} h6 {[%emt 0:06:06]} 9. Bh4 {[%emt 0:07:19]} Be7 {
[%emt 0:04:22]} 10. Re1 {[%emt 0:03:46]} d6 {[%emt 0:00:53]} 11. c3 {[%emt 0:
00:00]} Rb8 {[%emt 0:09:17]} 12. Nbd2 {[%emt 0:09:02]} g5 {[%emt 0:19:13]} 13.
Bg3 {[%emt 0:00:42]} Bg4 {[%emt 0:00:34]} 14. Nf1 {[%emt 0:03:33]} Na5 {
[%emt 0:08:49]} 15. Bc2 {[%emt 0:01:34]} Qd7 {[%emt 0:06:07]} 16. Ne3 {[%emt 0:
00:00]} c5 {[%emt 0:19:00]} 17. Nxg4 {[%emt 0:04:18]} Qxg4 {[%emt 0:00:27]} 18.
d4 {[%emt 0:04:46]} exd4 {[%emt 0:02:28]} 19. cxd4 {[%emt 0:05:39]} Rbd8 {
[%emt 0:00:40]} 20. e5 {[%emt 0:14:19]} dxe5 {[%emt 0:01:09]} 21. Bxe5 {
[%emt 0:00:13]} Nd5 {[%emt 0:00:50]} 22. Qd3 {[%emt 0:06:59]} f5 {[%emt 0:00:
00]} 23. h3 {[%emt 0:11:22]} Qh5 {[%emt 0:00:22]} 24. Bc7 {[%emt 0:02:09]} Nxc7
{[%emt 0:00:39]} 25. Rxe7 {[%emt 0:00:02]} Nd5 {[%emt 0:00:52]} 26. Ra7 {
[%emt 0:01:28]} Nb4 {[%emt 0:06:20]} 27. Qc3 {[%emt 0:08:24]} Nac6 {[%emt 0:00:
00]} 28. Rb7 {[%emt 0:01:35]} Nxc2 {[%emt 0:00:24]} 29. Qxc2 {[%emt 0:00:46]}
c4 {[%emt 0:02:01]} 30. Qc3 {[%emt 0:01:00]} Rf7 {[%emt 0:01:15]} 31. Rb6 {
[%emt 0:00:26]} g4 {[%emt 0:04:00]} 32. hxg4 {[%emt 0:01:06]} fxg4 {[%emt 0:00:
00]} 33. Ne5 {[%emt 0:00:16]} Nxe5 {[%emt 0:00:19]} 34. dxe5 {[%emt 0:00:02]}
Rd3 {[%emt 0:01:19]} 35. Rb8+ {[%emt 0:00:21]} Kh7 {[%emt 0:00:43]} 36. Qe1 {
[%emt 0:00:19]} Qf5 {[%emt 0:00:48]} 37. Qe2 {[%emt 0:01:01]} Re7 {[%emt 0:00:
00]} 38. Re1 {[%emt 0:00:53]} Rd5 {[%emt 0:00:34]} 39. Qe4 {[%emt 0:00:37]}
Rexe5 {[%emt 0:01:27]} 40. Qxf5+ {[%emt 0:00:17]} Rxf5 {[%emt 0:00:07]} 41. Rb6
{[%emt 0:14:34]} Rfe5 {[%emt 0:00:54]} 42. Rxe5 {[%emt 0:04:30]} Rxe5 {[%emt 0:
00:00]} 43. Kf1 {[%emt 0:10:37]} a5 {[%emt 0:00:14]} 44. Ra6 {[%emt 0:00:06]}
b4 {[%emt 0:08:41]} 45. Rc6 {[%emt 0:00:39]} Re4 {[%emt 0:00:11]} 46. Ra6 {
[%emt 0:01:12]} c3 {[%emt 0:02:26]} 47. bxc3 {[%emt 0:00:05]} bxc3 {[%emt 0:00:
00]} 48. Rc6 {[%emt 0:00:31]} Ra4 {[%emt 0:00:10]} 49. Rxc3 {[%emt 0:00:04]}
Rxa2 {[%emt 0:00:03]} 50. Rc5 {[%emt 0:02:00]} a4 {[%emt 0:00:54]} 51. Ra5 {
[%emt 0:00:16]} Kg6 {[%emt 0:00:19]} 52. Kg1 {[%emt 0:00:37]} a3 {[%emt 0:00:
00]} 53. Kh2 {[%emt 0:01:04]} Rxf2 {[%emt 0:00:29]} 54. Rxa3 {[%emt 0:00:02]}
Kg5 {[%emt 0:02:52]} 55. Kg3 {[%emt 0:00:19]} Rf5 {[%emt 0:00:16]} 56. Ra8 {
[%emt 0:00:30]} h5 {[%emt 0:01:01]} 57. Rg8+ {[%emt 0:00:31]} Kh6 {[%emt 0:00:
00]} 1/2-1/2